[Event "Titled Tuesday Blitz August 15 Early 2023"]
[White "Kushko, Dmitriy"]
[Black "Karamsetty, Jeevan"]
[WhiteFideId "14162261"]
[BlackFideId "2025337"]
[WhiteElo "2696"]
[BlackElo "2550"]
[Result "1-0"]
[Round "11"]
[TimeControl "180+1"]
[Date "2023.08.15"]
[WhiteClock "0:01:53"]
[BlackClock "0:01:12"]
[Board "42"]

1. Nf3 {[%clk 0:03:00]}  g6 {[%clk 0:02:58]} 2. e4 {[%clk 0:03:00]}  Bg7 {[%clk 0:02:57]} 3. d4 {[%clk 0:03:00]}  d6 {[%clk 0:02:53]} 4. Nc3 {[%clk 0:03:00]}  Nf6 {[%clk 0:02:52]} 5. Be3 {[%clk 0:02:59]}  a6 {[%clk 0:02:45]} 6. Qd2 {[%clk 0:02:56]}  b5 {[%clk 0:02:41]} 7. Bh6 {[%clk 0:02:56]}  O-O {[%clk 0:02:30]} 8. Bxg7 {[%clk 0:02:55]}  Kxg7 {[%clk 0:02:31]} 9. O-O-O {[%clk 0:02:52]}  b4 {[%clk 0:02:30]} 10. e5 {[%clk 0:02:46]}  bxc3 {[%clk 0:02:26]} 11. exf6+ {[%clk 0:02:46]}  exf6 {[%clk 0:02:27]} 12. Qxc3 {[%clk 0:02:46]}  Bg4 {[%clk 0:02:21]} 13. h3 {[%clk 0:02:36]}  Bxf3 {[%clk 0:02:16]} 14. Qxf3 {[%clk 0:02:37]}  Nd7 {[%clk 0:02:16]} 15. h4 {[%clk 0:02:38]}  Rb8 {[%clk 0:02:06]} 16. h5 {[%clk 0:02:37]}  Qc8 {[%clk 0:01:59]} 17. hxg6 {[%clk 0:01:55]}  fxg6 {[%clk 0:01:59]} 18. Bd3 {[%clk 0:01:55]}  Qb7 {[%clk 0:01:40]} 19. Rxh7+ {[%clk 0:01:52]}  Kg8 {[%clk 0:01:21]} 20. Qxb7 {[%clk 0:01:52]}  Rxb7 {[%clk 0:01:12]} 21. Rxd7 {[%clk 0:01:53]} 1-0


[Site "https://www.chess.com"]

[Event "Titled Tuesday Blitz August 15 Early 2023"]
[White "RrainlessBobot"]
[Black "SmirnovAlexandrA"]
[WhiteElo "2503"]
[BlackElo "2649"]
[Result "1-0"]
[Round "11"]
[TimeControl "180+1"]
[Date "2023.08.15"]
[WhiteClock "0:00:48"]
[BlackClock "0:00:04"]
[Board "47"]

1. Nf3 {[%clk 0:03:00]}  c5 {[%clk 0:02:53]} 2. g3 {[%clk 0:03:01]}  d6 {[%clk 0:02:53]} 3. Bg2 {[%clk 0:03:01]}  Nc6 {[%clk 0:02:54]} 4. O-O {[%clk 0:03:01]}  g6 {[%clk 0:02:53]} 5. d4 {[%clk 0:02:45]}  cxd4 {[%clk 0:02:54]} 6. Nxd4 {[%clk 0:02:45]}  Bd7 {[%clk 0:02:52]} 7. c4 {[%clk 0:02:46]}  Bg7 {[%clk 0:02:52]} 8. Nxc6 {[%clk 0:02:46]}  Bxc6 {[%clk 0:02:47]} 9. e4 {[%clk 0:02:41]}  Nf6 {[%clk 0:02:47]} 10. Nc3 {[%clk 0:02:41]}  O-O {[%clk 0:02:47]} 11. Qd3 {[%clk 0:02:32]}  Ng4 {[%clk 0:02:44]} 12. b3 {[%clk 0:02:31]}  a5 {[%clk 0:02:36]} 13. Bb2 {[%clk 0:02:31]}  a4 {[%clk 0:02:31]} 14. Nxa4 {[%clk 0:02:27]}  Bxa4 {[%clk 0:02:31]} 15. Bxg7 {[%clk 0:02:26]}  Kxg7 {[%clk 0:02:31]} 16. bxa4 {[%clk 0:02:24]}  Ne5 {[%clk 0:02:20]} 17. Qb3 {[%clk 0:02:23]}  Qc7 {[%clk 0:02:10]} 18. Rfc1 {[%clk 0:02:16]}  Rfb8 {[%clk 0:02:02]} 19. Rab1 {[%clk 0:02:16]}  Qa5 {[%clk 0:01:53]} 20. f4 {[%clk 0:02:16]}  Nd7 {[%clk 0:01:50]} 21. e5 {[%clk 0:01:48]}  dxe5 {[%clk 0:01:40]} 22. c5 {[%clk 0:01:48]}  Nxc5 {[%clk 0:01:28]} 23. Qd5 {[%clk 0:01:41]}  Ne6 {[%clk 0:01:26]} 24. Rb5 {[%clk 0:01:40]}  Qxa4 {[%clk 0:01:17]} 25. Qxe5+ {[%clk 0:01:39]}  Kg8 {[%clk 0:01:17]} 26. Bxb7 {[%clk 0:01:28]}  Qd4+ {[%clk 0:01:09]} 27. Qxd4 {[%clk 0:01:27]}  Nxd4 {[%clk 0:01:10]} 28. Bxa8 {[%clk 0:01:25]}  Rxb5 {[%clk 0:01:03]} 29. Rc8+ {[%clk 0:01:15]}  Kg7 {[%clk 0:01:03]} 30. a4 {[%clk 0:01:15]}  Ra5 {[%clk 0:01:02]} 31. Rc4 {[%clk 0:01:13]}  Ne2+ {[%clk 0:00:51]} 32. Kf2 {[%clk 0:01:08]}  Nxg3 {[%clk 0:00:52]} 33. hxg3 {[%clk 0:00:59]}  Rxa8 {[%clk 0:00:52]} 34. Ke3 {[%clk 0:01:00]}  Ra5 {[%clk 0:00:50]} 35. Kd3 {[%clk 0:01:00]}  Kf6 {[%clk 0:00:50]} 36. Kc3 {[%clk 0:01:00]}  e5 {[%clk 0:00:46]} 37. Kb4 {[%clk 0:01:00]}  Ra7 {[%clk 0:00:46]} 38. Kb5 {[%clk 0:00:59]}  exf4 {[%clk 0:00:45]} 39. Rxf4+ {[%clk 0:00:59]}  Kg5 {[%clk 0:00:45]} 40. Kb6 {[%clk 0:01:00]}  Ra8 {[%clk 0:00:44]} 41. a5 {[%clk 0:00:59]}  Rb8+ {[%clk 0:00:16]} 42. Kc7 {[%clk 0:00:54]}  Ra8 {[%clk 0:00:16]} 43. Kb6 {[%clk 0:00:53]}  Rb8+ {[%clk 0:00:16]} 44. Kc7 {[%clk 0:00:48]}  Ra8 {[%clk 0:00:15]} 45. Ra4 {[%clk 0:00:48]}  f5 {[%clk 0:00:10]} 46. a6 {[%clk 0:00:48]}  f4 {[%clk 0:00:09]} 47. Kb7 {[%clk 0:00:44]}  Rxa6 {[%clk 0:00:08]} 48. gxf4+ {[%clk 0:00:44]}  Kf5 {[%clk 0:00:08]} 49. Kxa6 {[%clk 0:00:44]}  h5 {[%clk 0:00:09]} 50. Kb5 {[%clk 0:00:44]}  h4 {[%clk 0:00:09]} 51. Kc4 {[%clk 0:00:44]}  Kxf4 {[%clk 0:00:09]} 52. Kd3+ {[%clk 0:00:45]}  Kg3 {[%clk 0:00:10]} 53. Ke2 {[%clk 0:00:45]}  g5 {[%clk 0:00:08]} 54. Kf1 {[%clk 0:00:45]}  g4 {[%clk 0:00:06]} 55. Kg1 {[%clk 0:00:46]}  h3 {[%clk 0:00:06]} 56. Ra3+ {[%clk 0:00:46]}  Kf4 {[%clk 0:00:06]} 57. Kh2 {[%clk 0:00:47]}  Kf5 {[%clk 0:00:06]} 58. Kg3 {[%clk 0:00:47]}  Kg5 {[%clk 0:00:04]} 59. Ra5+ {[%clk 0:00:48]} 1-0


[Site "https://www.chess.com"]

[Event "Titled Tuesday Blitz August 15 Early 2023"]
[White "Itkis, Boris"]
[Black "Arias, Juan Cruz"]
[WhiteFideId "1209167"]
[BlackFideId "118540"]
[WhiteElo "2488"]
[BlackElo "2649"]
[Result "0-1"]
[Round "11"]
[TimeControl "180+1"]
[Date "2023.08.15"]
[WhiteClock "0:01:00"]
[BlackClock "0:01:43"]
[Board "48"]

1. c4 {[%clk 0:03:00]}  e6 {[%clk 0:02:59]} 2. Nf3 {[%clk 0:03:00]}  d5 {[%clk 0:02:59]} 3. b3 {[%clk 0:03:01]}  d4 {[%clk 0:02:58]} 4. e3 {[%clk 0:03:01]}  Nc6 {[%clk 0:02:57]} 5. Bb2 {[%clk 0:03:00]}  Bc5 {[%clk 0:02:56]} 6. b4 {[%clk 0:02:55]}  Bxb4 {[%clk 0:02:55]} 7. exd4 {[%clk 0:02:55]}  Nf6 {[%clk 0:02:53]} 8. a3 {[%clk 0:02:54]}  Be7 {[%clk 0:02:49]} 9. g3 {[%clk 0:02:50]}  O-O {[%clk 0:02:45]} 10. Bg2 {[%clk 0:02:51]}  Na5 {[%clk 0:02:45]} 11. d3 {[%clk 0:02:50]}  b6 {[%clk 0:02:40]} 12. Ne5 {[%clk 0:02:41]}  Bb7 {[%clk 0:02:39]} 13. O-O {[%clk 0:02:36]}  Bxg2 {[%clk 0:02:39]} 14. Kxg2 {[%clk 0:02:37]}  Qc8 {[%clk 0:02:38]} 15. Nd2 {[%clk 0:02:36]}  Nd7 {[%clk 0:02:32]} 16. Nb3 {[%clk 0:02:34]}  Nxe5 {[%clk 0:02:29]} 17. dxe5 {[%clk 0:02:25]}  Qb7+ {[%clk 0:02:28]} 18. f3 {[%clk 0:02:24]}  Nxb3 {[%clk 0:02:25]} 19. Qxb3 {[%clk 0:02:25]}  c5 {[%clk 0:02:26]} 20. Rae1 {[%clk 0:02:21]}  Rad8 {[%clk 0:02:25]} 21. Re3 {[%clk 0:02:15]}  Rd7 {[%clk 0:02:26]} 22. Kf2 {[%clk 0:02:12]}  Rfd8 {[%clk 0:02:26]} 23. Ke2 {[%clk 0:02:10]}  Bg5 {[%clk 0:02:26]} 24. f4 {[%clk 0:02:10]}  Be7 {[%clk 0:02:26]} 25. h4 {[%clk 0:02:04]}  h5 {[%clk 0:02:24]} 26. Rf2 {[%clk 0:01:53]}  Qh1 {[%clk 0:02:22]} 27. Bc3 {[%clk 0:01:47]}  Qg1 {[%clk 0:02:07]} 28. Be1 {[%clk 0:01:46]}  Qh1 {[%clk 0:02:05]} 29. a4 {[%clk 0:01:45]}  Qc6 {[%clk 0:02:05]} 30. Qb5 {[%clk 0:01:36]}  Qc7 {[%clk 0:02:01]} 31. a5 {[%clk 0:01:35]}  Rb8 {[%clk 0:02:00]} 32. a6 {[%clk 0:01:35]}  Rbd8 {[%clk 0:01:59]} 33. Rff3 {[%clk 0:01:33]}  Qc8 {[%clk 0:01:59]} 34. Bf2 {[%clk 0:01:32]}  Qa8 {[%clk 0:01:58]} 35. Kd2 {[%clk 0:01:31]}  f6 {[%clk 0:01:55]} 36. exf6 {[%clk 0:01:27]}  Bxf6 {[%clk 0:01:55]} 37. Kc2 {[%clk 0:01:27]}  Bd4 {[%clk 0:01:51]} 38. Re4 {[%clk 0:01:08]}  Bxf2 {[%clk 0:01:51]} 39. Rxf2 {[%clk 0:01:09]}  Rxd3 {[%clk 0:01:51]} 40. Rfe2 {[%clk 0:01:10]}  Rd2+ {[%clk 0:01:49]} 41. Kc1 {[%clk 0:01:04]}  Rxe2 {[%clk 0:01:44]} 42. Rxe2 {[%clk 0:01:05]}  Qh1+ {[%clk 0:01:44]} 43. Kc2 {[%clk 0:01:00]}  Qd1+ {[%clk 0:01:43]} 0-1


[Site "https://www.chess.com"]

[Event "Titled Tuesday Blitz August 15 Early 2023"]
[White "Dias, Paulo"]
[Black "Goltsev, Dmitry"]
[WhiteFideId "1900803"]
[BlackFideId "24176710"]
[WhiteElo "2500"]
[BlackElo "2648"]
[Result "1/2-1/2"]
[Round "11"]
[TimeControl "180+1"]
[Date "2023.08.15"]
[WhiteClock "0:00:17"]
[BlackClock "0:00:11"]
[Board "49"]

1. e4 {[%clk 0:03:00]}  e6 {[%clk 0:02:58]} 2. d4 {[%clk 0:03:00]}  d5 {[%clk 0:02:58]} 3. exd5 {[%clk 0:02:59]}  exd5 {[%clk 0:02:59]} 4. Bd3 {[%clk 0:02:58]}  c5 {[%clk 0:02:59]} 5. dxc5 {[%clk 0:02:56]}  Bxc5 {[%clk 0:03:00]} 6. Nf3 {[%clk 0:02:47]}  Nf6 {[%clk 0:02:59]} 7. O-O {[%clk 0:02:47]}  O-O {[%clk 0:02:59]} 8. Bg5 {[%clk 0:02:47]}  Bg4 {[%clk 0:02:57]} 9. h3 {[%clk 0:02:46]}  Bh5 {[%clk 0:02:57]} 10. Nbd2 {[%clk 0:02:46]}  Qd6 {[%clk 0:02:57]} 11. Nb3 {[%clk 0:02:43]}  Bb6 {[%clk 0:02:57]} 12. c3 {[%clk 0:02:38]}  h6 {[%clk 0:02:57]} 13. Bxf6 {[%clk 0:02:27]}  Qxf6 {[%clk 0:02:58]} 14. g4 {[%clk 0:02:27]}  Bg6 {[%clk 0:02:56]} 15. Nfd4 {[%clk 0:02:26]}  Nc6 {[%clk 0:02:54]} 16. Bxg6 {[%clk 0:02:19]}  fxg6 {[%clk 0:02:53]} 17. a4 {[%clk 0:02:01]}  Qf4 {[%clk 0:02:48]} 18. Qd3 {[%clk 0:01:52]}  Rae8 {[%clk 0:02:29]} 19. Qg3 {[%clk 0:01:44]}  Bxd4 {[%clk 0:02:17]} 20. cxd4 {[%clk 0:01:39]}  Nxd4 {[%clk 0:02:17]} 21. Nxd4 {[%clk 0:01:38]}  Qxd4 {[%clk 0:02:18]} 22. Rad1 {[%clk 0:01:35]}  Qxa4 {[%clk 0:02:10]} 23. Rxd5 {[%clk 0:01:34]}  Qe4 {[%clk 0:02:10]} 24. Rfd1 {[%clk 0:01:31]}  Rf3 {[%clk 0:02:08]} 25. Qg2 {[%clk 0:01:30]}  Kh7 {[%clk 0:02:04]} 26. Rd7 {[%clk 0:01:30]}  Qf4 {[%clk 0:02:01]} 27. Rxb7 {[%clk 0:01:20]}  Re2 {[%clk 0:01:17]} 28. Rf1 {[%clk 0:01:17]}  a5 {[%clk 0:01:14]} 29. Rb5 {[%clk 0:01:07]}  a4 {[%clk 0:01:14]} 30. Rb7 {[%clk 0:00:56]}  Qe4 {[%clk 0:01:13]} 31. Rb6 {[%clk 0:00:47]}  h5 {[%clk 0:01:01]} 32. gxh5 {[%clk 0:00:36]}  gxh5 {[%clk 0:01:02]} 33. Rb4 {[%clk 0:00:31]}  Qd5 {[%clk 0:00:42]} 34. Rxa4 {[%clk 0:00:29]}  Qf5 {[%clk 0:00:34]} 35. Ra5 {[%clk 0:00:24]}  Qxh3 {[%clk 0:00:17]} 36. Qxh3 {[%clk 0:00:22]}  Rxh3 {[%clk 0:00:18]} 37. Kg2 {[%clk 0:00:22]}  Rh4 {[%clk 0:00:18]} 38. Kg3 {[%clk 0:00:20]}  Rg4+ {[%clk 0:00:18]} 39. Kf3 {[%clk 0:00:20]}  Ree4 {[%clk 0:00:12]} 40. Rxh5+ {[%clk 0:00:19]}  Kg6 {[%clk 0:00:12]} 41. Rd5 {[%clk 0:00:16]}  Rgf4+ {[%clk 0:00:10]} 42. Kg3 {[%clk 0:00:15]}  Rg4+ {[%clk 0:00:10]} 43. Kf3 {[%clk 0:00:16]}  Rgf4+ {[%clk 0:00:10]} 44. Kg3 {[%clk 0:00:16]}  Rg4+ {[%clk 0:00:11]} 45. Kf3 {[%clk 0:00:17]} 1/2-1/2


[Site "https://www.chess.com"]

[Event "Titled Tuesday Blitz August 15 Early 2023"]
[White "Bueno, Alfeu Junior Varela"]
[Black "Sipila, Vilka"]
[WhiteFideId "2108879"]
[BlackFideId "505455"]
[WhiteElo "2464"]
[BlackElo "2635"]
[Result "0-1"]
[Round "11"]
[TimeControl "180+1"]
[Date "2023.08.15"]
[WhiteClock "0:00:01"]
[BlackClock "0:00:53"]
[Board "51"]

1. e4 {[%clk 0:03:00]}  e5 {[%clk 0:02:59]} 2. Nc3 {[%clk 0:03:01]}  Nf6 {[%clk 0:02:59]} 3. f4 {[%clk 0:03:01]}  d5 {[%clk 0:02:59]} 4. fxe5 {[%clk 0:03:02]}  Nxe4 {[%clk 0:02:59]} 5. Qf3 {[%clk 0:03:03]}  Nc6 {[%clk 0:02:53]} 6. Bb5 {[%clk 0:03:02]}  Be6 {[%clk 0:02:51]} 7. Bxc6+ {[%clk 0:02:54]}  bxc6 {[%clk 0:02:50]} 8. Nxe4 {[%clk 0:02:55]}  dxe4 {[%clk 0:02:51]} 9. Qxe4 {[%clk 0:02:56]}  Bd5 {[%clk 0:02:49]} 10. Qg4 {[%clk 0:02:46]}  h5 {[%clk 0:02:48]} 11. Qg3 {[%clk 0:02:45]}  Qd7 {[%clk 0:02:42]} 12. Nf3 {[%clk 0:02:40]}  Bc5 {[%clk 0:02:36]} 13. c3 {[%clk 0:01:50]}  h4 {[%clk 0:02:01]} 14. Qf4 {[%clk 0:01:40]}  h3 {[%clk 0:01:58]} 15. d4 {[%clk 0:01:03]}  hxg2 {[%clk 0:01:57]} 16. Rg1 {[%clk 0:01:03]}  Be7 {[%clk 0:01:47]} 17. Be3 {[%clk 0:00:58]}  Rh3 {[%clk 0:01:43]} 18. Ng5 {[%clk 0:00:52]}  Bxg5 {[%clk 0:01:13]} 19. Qxg5 {[%clk 0:00:53]}  f6 {[%clk 0:01:14]} 20. exf6 {[%clk 0:00:26]}  gxf6 {[%clk 0:01:15]} 21. Qg6+ {[%clk 0:00:22]}  Bf7 {[%clk 0:01:12]} 22. Qe4+ {[%clk 0:00:20]}  Kf8 {[%clk 0:01:07]} 23. O-O-O {[%clk 0:00:09]}  Re8 {[%clk 0:01:06]} 24. Qf4 {[%clk 0:00:05]}  Rexe3 {[%clk 0:01:06]} 25. Rxg2 {[%clk 0:00:05]}  Qd6 {[%clk 0:01:02]} 26. Qg4 {[%clk 0:00:03]}  Qe6 {[%clk 0:00:58]} 27. Qg7+ {[%clk 0:00:03]}  Ke7 {[%clk 0:00:58]} 28. Rf2 {[%clk 0:00:01]}  Re2 {[%clk 0:00:56]} 29. Rdf1 {[%clk 0:00:01]}  Qe3+ {[%clk 0:00:54]} 30. Kd1 {[%clk 0:00:01]}  Qd2# {[%clk 0:00:53]} 0-1


[Site "https://www.chess.com"]

[Event "Titled Tuesday Blitz August 15 Early 2023"]
[White "Vlassov, Nikolai"]
[Black "Yeritsyan, Hayk"]
[WhiteFideId "4103360"]
[BlackFideId "13307320"]
[WhiteElo "2616"]
[BlackElo "2461"]
[Result "0-1"]
[Round "11"]
[TimeControl "180+1"]
[Date "2023.08.15"]
[WhiteClock "0:00:02"]
[BlackClock "0:00:06"]
[Board "53"]

1. e4 {[%clk 0:03:00]}  c6 {[%clk 0:02:58]} 2. d4 {[%clk 0:03:00]}  d5 {[%clk 0:02:59]} 3. f3 {[%clk 0:02:59]}  e6 {[%clk 0:02:59]} 4. Nc3 {[%clk 0:02:59]}  Nf6 {[%clk 0:02:59]} 5. Be3 {[%clk 0:02:57]}  Be7 {[%clk 0:02:55]} 6. Qd2 {[%clk 0:02:50]}  O-O {[%clk 0:02:54]} 7. e5 {[%clk 0:02:43]}  Nfd7 {[%clk 0:02:54]} 8. f4 {[%clk 0:02:43]}  c5 {[%clk 0:02:54]} 9. Nf3 {[%clk 0:02:43]}  Nc6 {[%clk 0:02:54]} 10. Bb5 {[%clk 0:02:29]}  cxd4 {[%clk 0:02:43]} 11. Nxd4 {[%clk 0:02:27]}  Nxd4 {[%clk 0:02:43]} 12. Bxd4 {[%clk 0:02:26]}  Bc5 {[%clk 0:02:43]} 13. O-O-O {[%clk 0:02:22]}  Bxd4 {[%clk 0:02:43]} 14. Qxd4 {[%clk 0:02:21]}  Qb6 {[%clk 0:02:38]} 15. Bxd7 {[%clk 0:02:15]}  Qxd4 {[%clk 0:02:36]} 16. Rxd4 {[%clk 0:02:14]}  Bxd7 {[%clk 0:02:37]} 17. Ne4 {[%clk 0:02:09]}  Bc6 {[%clk 0:02:11]} 18. Nd6 {[%clk 0:02:09]}  f6 {[%clk 0:02:11]} 19. Re1 {[%clk 0:02:01]}  Rad8 {[%clk 0:01:57]} 20. b3 {[%clk 0:01:51]}  fxe5 {[%clk 0:01:38]} 21. fxe5 {[%clk 0:01:50]}  Rf2 {[%clk 0:01:39]} 22. Rd2 {[%clk 0:01:50]}  Rdf8 {[%clk 0:01:35]} 23. Kd1 {[%clk 0:01:41]}  d4 {[%clk 0:01:13]} 24. Rxf2 {[%clk 0:01:36]}  Rxf2 {[%clk 0:01:11]} 25. Re2 {[%clk 0:01:36]}  Rxg2 {[%clk 0:01:07]} 26. Rxg2 {[%clk 0:01:35]}  Bxg2 {[%clk 0:01:07]} 27. Kd2 {[%clk 0:01:35]}  g5 {[%clk 0:00:52]} 28. Kd3 {[%clk 0:01:36]}  h5 {[%clk 0:00:47]} 29. Kxd4 {[%clk 0:01:36]}  Kg7 {[%clk 0:00:46]} 30. c4 {[%clk 0:01:35]}  Kg6 {[%clk 0:00:46]} 31. b4 {[%clk 0:01:32]}  h4 {[%clk 0:00:46]} 32. a4 {[%clk 0:01:21]}  g4 {[%clk 0:00:43]} 33. Ke3 {[%clk 0:01:22]}  Kg5 {[%clk 0:00:40]} 34. c5 {[%clk 0:01:20]}  Bd5 {[%clk 0:00:32]} 35. Kf2 {[%clk 0:01:13]}  Kf4 {[%clk 0:00:29]} 36. Nf7 {[%clk 0:01:10]}  g3+ {[%clk 0:00:20]} 37. hxg3+ {[%clk 0:01:10]}  hxg3+ {[%clk 0:00:21]} 38. Kg1 {[%clk 0:01:10]}  Ke4 {[%clk 0:00:20]} 39. Kg2 {[%clk 0:01:00]}  Kf4+ {[%clk 0:00:20]} 40. Kg1 {[%clk 0:01:01]}  Ke3 {[%clk 0:00:19]} 41. Nd8 {[%clk 0:00:45]}  Kd4 {[%clk 0:00:18]} 42. a5 {[%clk 0:00:22]}  Kc4 {[%clk 0:00:16]} 43. a6 {[%clk 0:00:21]}  bxa6 {[%clk 0:00:16]} 44. c6 {[%clk 0:00:22]}  Bxc6 {[%clk 0:00:14]} 45. Nxc6 {[%clk 0:00:22]}  Kd5 {[%clk 0:00:13]} 46. Nxa7 {[%clk 0:00:19]}  Kxe5 {[%clk 0:00:13]} 47. Kg2 {[%clk 0:00:19]}  Kd6 {[%clk 0:00:12]} 48. Kxg3 {[%clk 0:00:19]}  Kc7 {[%clk 0:00:12]} 49. b5 {[%clk 0:00:14]}  a5 {[%clk 0:00:12]} 50. Nc6 {[%clk 0:00:10]}  a4 {[%clk 0:00:09]} 51. Nd4 {[%clk 0:00:10]}  Kb6 {[%clk 0:00:09]} 52. Kf4 {[%clk 0:00:10]}  a3 {[%clk 0:00:06]} 53. Ke5 {[%clk 0:00:09]}  a2 {[%clk 0:00:06]} 54. Nc2 {[%clk 0:00:07]}  Kxb5 {[%clk 0:00:07]} 55. Kxe6 {[%clk 0:00:05]}  Kc4 {[%clk 0:00:07]} 56. Ke5 {[%clk 0:00:05]}  Kc3 {[%clk 0:00:08]} 57. Ne3 {[%clk 0:00:04]}  a1=Q {[%clk 0:00:07]} 58. Nd5+ {[%clk 0:00:04]}  Kc4+ {[%clk 0:00:07]} 59. Kd6 {[%clk 0:00:04]}  Qa6+ {[%clk 0:00:07]} 60. Ke5 {[%clk 0:00:02]}  Qb5 {[%clk 0:00:06]} 0-1


[Site "https://www.chess.com"]

[Event "Titled Tuesday Blitz August 15 Early 2023"]
[White "Herman, Daniel"]
[Black "Papayan, Oleg"]
[WhiteFideId "30935008"]
[BlackFideId "4193911"]
[WhiteElo "2460"]
[BlackElo "2613"]
[Result "0-1"]
[Round "11"]
[TimeControl "180+1"]
[Date "2023.08.15"]
[WhiteClock "0:00:07"]
[BlackClock "0:00:06"]
[Board "54"]

1. e4 {[%clk 0:03:00]}  d5 {[%clk 0:02:59]} 2. exd5 {[%clk 0:02:59]}  Qxd5 {[%clk 0:03:00]} 3. Nc3 {[%clk 0:03:00]}  Qd8 {[%clk 0:03:01]} 4. d4 {[%clk 0:03:01]}  c6 {[%clk 0:03:01]} 5. Bc4 {[%clk 0:02:58]}  Bf5 {[%clk 0:03:02]} 6. Qf3 {[%clk 0:02:56]}  e6 {[%clk 0:03:02]} 7. Nge2 {[%clk 0:02:45]}  Bxc2 {[%clk 0:03:01]} 8. Bf4 {[%clk 0:02:29]}  Nf6 {[%clk 0:02:57]} 9. Rc1 {[%clk 0:02:28]}  Bg6 {[%clk 0:02:53]} 10. h4 {[%clk 0:02:23]}  Bd6 {[%clk 0:02:42]} 11. h5 {[%clk 0:02:21]}  Bf5 {[%clk 0:02:36]} 12. h6 {[%clk 0:02:19]}  g6 {[%clk 0:02:27]} 13. Be5 {[%clk 0:02:18]}  Bxe5 {[%clk 0:02:10]} 14. dxe5 {[%clk 0:02:18]}  Ng4 {[%clk 0:02:11]} 15. Qf4 {[%clk 0:02:08]}  Nd7 {[%clk 0:01:54]} 16. f3 {[%clk 0:01:43]}  Ngxe5 {[%clk 0:01:50]} 17. g4 {[%clk 0:01:38]}  Bd3 {[%clk 0:01:17]} 18. Bb3 {[%clk 0:01:37]}  Qb6 {[%clk 0:01:02]} 19. Rd1 {[%clk 0:01:12]}  O-O-O {[%clk 0:01:01]} 20. Nd4 {[%clk 0:00:53]}  Qxd4 {[%clk 0:00:54]} 21. Qxd4 {[%clk 0:00:51]}  Nxf3+ {[%clk 0:00:54]} 22. Kf2 {[%clk 0:00:51]}  Nxd4 {[%clk 0:00:55]} 23. Rxd3 {[%clk 0:00:52]}  Nxb3 {[%clk 0:00:55]} 24. axb3 {[%clk 0:00:53]}  Ne5 {[%clk 0:00:48]} 25. Rxd8+ {[%clk 0:00:45]}  Rxd8 {[%clk 0:00:48]} 26. Ne4 {[%clk 0:00:40]}  Nxg4+ {[%clk 0:00:47]} 27. Kf3 {[%clk 0:00:40]}  f5 {[%clk 0:00:46]} 28. Ng5 {[%clk 0:00:39]}  Rd3+ {[%clk 0:00:38]} 29. Ke2 {[%clk 0:00:35]}  Rxb3 {[%clk 0:00:37]} 30. Nxh7 {[%clk 0:00:33]}  Rxb2+ {[%clk 0:00:37]} 31. Kf3 {[%clk 0:00:32]}  a5 {[%clk 0:00:28]} 32. Ng5 {[%clk 0:00:32]}  Nxh6 {[%clk 0:00:27]} 33. Rxh6 {[%clk 0:00:33]}  a4 {[%clk 0:00:27]} 34. Rh4 {[%clk 0:00:25]}  b5 {[%clk 0:00:23]} 35. Nxe6 {[%clk 0:00:20]}  a3 {[%clk 0:00:21]} 36. Rh8+ {[%clk 0:00:19]}  Kd7 {[%clk 0:00:22]} 37. Nc5+ {[%clk 0:00:18]}  Kd6 {[%clk 0:00:23]} 38. Nb7+ {[%clk 0:00:15]}  Kc7 {[%clk 0:00:22]} 39. Nc5 {[%clk 0:00:15]}  a2 {[%clk 0:00:20]} 40. Ra8 {[%clk 0:00:14]}  Kb6 {[%clk 0:00:13]} 41. Nd3 {[%clk 0:00:14]}  Rc2 {[%clk 0:00:07]} 42. Nb4 {[%clk 0:00:13]}  Rc3+ {[%clk 0:00:06]} 43. Kf4 {[%clk 0:00:07]}  Rc4+ {[%clk 0:00:06]} 0-1


[Site "https://www.chess.com"]

[Event "Titled Tuesday Blitz August 15 Early 2023"]
[White "Vafin, Ayrat"]
[Black "Onufrienko, Vladislav"]
[WhiteFideId "4146530"]
[BlackFideId "13804332"]
[WhiteElo "2434"]
[BlackElo "2579"]
[Result "0-1"]
[Round "11"]
[TimeControl "180+1"]
[Date "2023.08.15"]
[WhiteClock "0:00:04"]
[BlackClock "0:00:06"]
[Board "55"]

1. Nf3 {[%clk 0:03:00]}  d5 {[%clk 0:03:00]} 2. g3 {[%clk 0:03:00]}  c6 {[%clk 0:03:00]} 3. Bg2 {[%clk 0:03:01]}  Bg4 {[%clk 0:03:00]} 4. O-O {[%clk 0:03:00]}  Nd7 {[%clk 0:03:00]} 5. d4 {[%clk 0:03:00]}  e6 {[%clk 0:03:00]} 6. Nbd2 {[%clk 0:03:01]}  f5 {[%clk 0:02:59]} 7. h3 {[%clk 0:02:55]}  Bh5 {[%clk 0:02:59]} 8. c4 {[%clk 0:02:55]}  Bd6 {[%clk 0:02:58]} 9. Qb3 {[%clk 0:02:55]}  Qb6 {[%clk 0:02:54]} 10. c5 {[%clk 0:02:55]}  Qxb3 {[%clk 0:02:54]} 11. axb3 {[%clk 0:02:55]}  Bc7 {[%clk 0:02:51]} 12. b4 {[%clk 0:02:54]}  a6 {[%clk 0:02:51]} 13. Nb3 {[%clk 0:02:54]}  Rb8 {[%clk 0:02:46]} 14. Bf4 {[%clk 0:02:54]}  Bxf4 {[%clk 0:02:42]} 15. gxf4 {[%clk 0:02:54]}  Ngf6 {[%clk 0:02:41]} 16. Na5 {[%clk 0:02:51]}  Kd8 {[%clk 0:02:28]} 17. e3 {[%clk 0:02:44]}  Kc7 {[%clk 0:02:24]} 18. Ne5 {[%clk 0:02:38]}  Rhg8 {[%clk 0:02:17]} 19. Kh2 {[%clk 0:02:23]}  h6 {[%clk 0:02:14]} 20. Rg1 {[%clk 0:02:15]}  g5 {[%clk 0:02:14]} 21. Nxd7 {[%clk 0:01:54]}  Kxd7 {[%clk 0:02:08]} 22. fxg5 {[%clk 0:01:44]}  hxg5 {[%clk 0:02:09]} 23. f3 {[%clk 0:01:31]}  Kc7 {[%clk 0:02:08]} 24. Kg3 {[%clk 0:01:24]}  Rbf8 {[%clk 0:01:41]} 25. Kf2 {[%clk 0:00:55]}  g4 {[%clk 0:01:39]} 26. hxg4 {[%clk 0:00:50]}  fxg4 {[%clk 0:01:35]} 27. f4 {[%clk 0:00:50]}  g3+ {[%clk 0:01:35]} 28. Ke1 {[%clk 0:00:50]}  Ng4 {[%clk 0:01:28]} 29. Kd2 {[%clk 0:00:50]}  Nf2 {[%clk 0:01:26]} 30. Nb3 {[%clk 0:00:48]}  Ne4+ {[%clk 0:01:00]} 31. Bxe4 {[%clk 0:00:45]}  dxe4 {[%clk 0:01:00]} 32. Rh1 {[%clk 0:00:30]}  g2 {[%clk 0:00:52]} 33. Rxh5 {[%clk 0:00:22]}  g1=Q {[%clk 0:00:52]} 34. Rxg1 {[%clk 0:00:22]}  Rxg1 {[%clk 0:00:52]} 35. Re5 {[%clk 0:00:22]}  Kd7 {[%clk 0:00:46]} 36. Rxe4 {[%clk 0:00:22]}  Rfg8 {[%clk 0:00:45]} 37. Kc3 {[%clk 0:00:13]}  R8g2 {[%clk 0:00:42]} 38. Re5 {[%clk 0:00:10]}  Rb1 {[%clk 0:00:36]} 39. d5 {[%clk 0:00:08]}  exd5 {[%clk 0:00:32]} 40. Nd4 {[%clk 0:00:08]}  Rgxb2 {[%clk 0:00:24]} 41. Rh5 {[%clk 0:00:08]}  Rxb4 {[%clk 0:00:23]} 42. Rh7+ {[%clk 0:00:07]}  Ke8 {[%clk 0:00:20]} 43. f5 {[%clk 0:00:08]}  Rc4+ {[%clk 0:00:19]} 44. Kd3 {[%clk 0:00:08]}  Rd1+ {[%clk 0:00:19]} 45. Ke2 {[%clk 0:00:08]}  Rdxd4 {[%clk 0:00:13]} 46. exd4 {[%clk 0:00:09]}  Rxd4 {[%clk 0:00:14]} 47. Rxb7 {[%clk 0:00:09]}  Rc4 {[%clk 0:00:13]} 48. Kd3 {[%clk 0:00:09]}  Rxc5 {[%clk 0:00:14]} 49. Kd4 {[%clk 0:00:09]}  Rb5 {[%clk 0:00:13]} 50. Rc7 {[%clk 0:00:08]}  Rb6 {[%clk 0:00:07]} 51. Kc5 {[%clk 0:00:08]}  Rb1 {[%clk 0:00:07]} 52. Kd6 {[%clk 0:00:08]}  Rc1 {[%clk 0:00:06]} 53. f6 {[%clk 0:00:07]}  Kf8 {[%clk 0:00:05]} 54. Ke6 {[%clk 0:00:05]}  Re1+ {[%clk 0:00:05]} 55. Kd6 {[%clk 0:00:05]}  d4 {[%clk 0:00:03]} 56. Rxc6 {[%clk 0:00:04]}  d3 {[%clk 0:00:03]} 57. Rc8+ {[%clk 0:00:01]}  Kf7 {[%clk 0:00:03]} 58. Rd8 {[%clk 0:00:02]}  d2 {[%clk 0:00:03]} 59. Kc5 {[%clk 0:00:02]}  d1=Q {[%clk 0:00:04]} 60. Rxd1 {[%clk 0:00:02]}  Rxd1 {[%clk 0:00:05]} 61. Kb6 {[%clk 0:00:03]}  Rd6+ {[%clk 0:00:05]} 62. Kc5 {[%clk 0:00:03]}  Rxf6 {[%clk 0:00:06]} 63. Kd5 {[%clk 0:00:03]}  Re6 {[%clk 0:00:06]} 64. Kc4 {[%clk 0:00:04]}  Rb6 {[%clk 0:00:06]} 0-1


[Site "https://www.chess.com"]